{"text_format":"3","workbook":"xlsx","n_sheets":2,"sheets":["Listă de alimente","calcule"],"not_rendered":{"defined_names":4},"read":"whole","date_system":"1900"}

{"sheet":"Listă de alimente","index":0,"n_rows":21,"n_cols":13,"rows_kept":21,"merged":[[0,1,0,11],[0,12,1,12],[1,1,1,11],[4,12,5,12],[7,12,8,12],[10,12,11,12],[13,12,14,12]]}
[{"$nulls":12},{"$f":"calcule!M9","v":"PRODUSE LACTATE TOTAL"}]
[null," Listă de alimente"]
[null,null,"Terminat","ARTICOL","MAGAZIN","CATEGORIE","CANTITATE","UNITATE","PREȚ UNITAR","TOTAL","COMENTARIU",null,{"$f":"calcule!L9","v":37}]
[null,null,1,"Portocale","Magazin alimentar","Legume și fructe",2,"kg",{"v":2.99,"d":"2.99 lei"},{"$f":"IFERROR(Listă[CANTITATE]*Listă[PREȚ UNITAR],\"\")","v":{"v":5.98,"d":"5.98 lei"}},null,null,{"$f":"calcule!M8","v":"LEGUME ȘI FRUCTE TOTAL"}]
[{"$nulls":3},"Mere","Livadă","Legume și fructe",3,"kg",{"v":1.99,"d":"1.99 lei"},{"$f":"IFERROR(Listă[CANTITATE]*Listă[PREȚ UNITAR],\"\")","v":{"v":5.97,"d":"5.97 lei"}},"Am voucher",null,{"$f":"calcule!L8","v":45}]
[{"$nulls":3},"Banane","Magazin alimentar","Legume și fructe",1,"mănunchi",{"v":3.99,"d":"3.99 lei"},{"$f":"IFERROR(Listă[CANTITATE]*Listă[PREȚ UNITAR],\"\")","v":{"v":3.99,"d":"3.99 lei"}}]
[{"$nulls":3},"Salată verde","Piață","Legume și fructe",2,"bucată",{"v":2.29,"d":"2.29 lei"},{"$f":"IFERROR(Listă[CANTITATE]*Listă[PREȚ UNITAR],\"\")","v":{"v":4.58,"d":"4.58 lei"}},null,null,{"$f":"calcule!M7","v":"CARNE TOTAL"}]
[{"$nulls":3},"Roșii","Piață","Legume și fructe",4,"kg",{"v":3.49,"d":"3.49 lei"},{"$f":"IFERROR(Listă[CANTITATE]*Listă[PREȚ UNITAR],\"\")","v":{"v":13.96,"d":"13.96 lei"}},null,null,{"$f":"calcule!L7","v":80}]
[{"$nulls":3},"Dovlecei","Piață","Legume și fructe",2,"bucată",{"v":1.5,"d":"1.50 lei"},{"$f":"IFERROR(Listă[CANTITATE]*Listă[PREȚ UNITAR],\"\")","v":{"v":3,"d":"3.00 lei"}}]
[{"$nulls":3},"Țelină","Magazin alimentar","Legume și fructe",2,"mănunchi",{"v":1.99,"d":"1.99 lei"},{"$f":"IFERROR(Listă[CANTITATE]*Listă[PREȚ UNITAR],\"\")","v":{"v":3.98,"d":"3.98 lei"}},null,null,{"$f":"calcule!M6","v":"FRUCTE DE MARE TOTAL"}]
[{"$nulls":3},"Castraveți","Piață","Legume și fructe",1,"kg",{"v":2.29,"d":"2.29 lei"},{"$f":"IFERROR(Listă[CANTITATE]*Listă[PREȚ UNITAR],\"\")","v":{"v":2.29,"d":"2.29 lei"}},null,null,{"$f":"calcule!L6","v":109}]
[{"$nulls":3},"Ciuperci","Magazin alimentar","Legume și fructe",0.5,"kg",{"v":2.25,"d":"2.25 lei"},{"$f":"IFERROR(Listă[CANTITATE]*Listă[PREȚ UNITAR],\"\")","v":{"v":1.125,"d":"1.13 lei"}},"Ciuperci mari"]
[{"$nulls":3},"Lapte ","Livrare la domiciliu","Produse lactate",2,"litru",{"v":3.99,"d":"3.99 lei"},{"$f":"IFERROR(Listă[CANTITATE]*Listă[PREȚ UNITAR],\"\")","v":{"v":7.98,"d":"7.98 lei"}},null,null,{"$f":"calcule!M3","v":"ALTELE TOTAL"}]
[{"$nulls":3},"Brânză","Livrare la domiciliu","Produse lactate",1,"kg",{"v":9.99,"d":"9.99 lei"},{"$f":"IFERROR(Listă[CANTITATE]*Listă[PREȚ UNITAR],\"\")","v":{"v":9.99,"d":"9.99 lei"}},"Diferite brânzeturi",null,{"$f":"calcule!L3","v":0}]
[{"$nulls":3},"Ouă","Livrare la domiciliu","Produse lactate",2,"duzină",{"v":3.5,"d":"3.50 lei"},{"$f":"IFERROR(Listă[CANTITATE]*Listă[PREȚ UNITAR],\"\")","v":{"v":7,"d":"7.00 lei"}}]
[{"$nulls":3},"Brânză de vaci","Livrare la domiciliu","Produse lactate",1,"500 g",{"v":3.89,"d":"3.89 lei"},{"$f":"IFERROR(Listă[CANTITATE]*Listă[PREȚ UNITAR],\"\")","v":{"v":3.89,"d":"3.89 lei"}},null,null,{"$f":"calcule!M4","v":"TOTAL ALIMENTE"}]
[{"$nulls":3},"Smântână","Livrare la domiciliu","Produse lactate",1,"250 g",{"v":2.99,"d":"2.99 lei"},{"$f":"IFERROR(Listă[CANTITATE]*Listă[PREȚ UNITAR],\"\")","v":{"v":2.99,"d":"2.99 lei"}},null,null,{"$f":"TotalAlimente","v":271}]
[{"$nulls":3},"Iaurt","Magazin alimentar","Produse lactate",1,"500 g",{"v":4.99,"d":"4.99 lei"},{"$f":"IFERROR(Listă[CANTITATE]*Listă[PREȚ UNITAR],\"\")","v":{"v":4.99,"d":"4.99 lei"}},"Grecesc, cu miere"]
[{"$nulls":3},"Carne de vită","Piață","Carne",10,"kg",{"v":7.99,"d":"7.99 lei"},{"$f":"IFERROR(Listă[CANTITATE]*Listă[PREȚ UNITAR],\"\")","v":{"v":79.9,"d":"79.90 lei"}},"Fileuri cu șuncă"]
[{"$nulls":3},"Somon sălbatic","Piața de pește","Fructe de mare",6,"kg",{"v":8.99,"d":"8.99 lei"},{"$f":"IFERROR(Listă[CANTITATE]*Listă[PREȚ UNITAR],\"\")","v":{"v":53.94,"d":"53.94 lei"}}]
[{"$nulls":3},"Picioare de crab regal de Alaska","Piața de pește","Fructe de mare",5,"kg",{"v":10.99,"d":"10.99 lei"},{"$f":"IFERROR(Listă[CANTITATE]*Listă[PREȚ UNITAR],\"\")","v":{"v":54.95,"d":"54.95 lei"}}]

{"sheet":"calcule","index":1,"n_rows":21,"n_cols":13,"rows_kept":21,"hidden":true}
["***  Foaie care trebuie să rămână ascunsă ***"]
[]
[{"$nulls":10},{"$f":"SUM(Listă[TOTAL])-SUM(K6:K9)","v":{"v":0,"d":"0.00 lei"}},{"$f":"ROUND(K3,0)","v":{"v":0,"d":"0 lei"}},"ALTELE TOTAL"]
[{"$nulls":11},{"$f":"ROUNDUP(SUM(Listă[TOTAL]),0)","v":{"v":271,"d":"271 lei"}},"TOTAL ALIMENTE"]
[]
[{"$nulls":4},{"$f":"IFERROR(INDEX(Listă[CATEGORIE],MATCH(,COUNTIF($E$5:E5,Listă[CATEGORIE]),)),\"\")","v":"Legume și fructe"},{"$f":"SUMIFS(Listă[TOTAL],Listă[CATEGORIE],E6)","v":44.875},{"$f":"F6+ROW()/1000000","v":44.875006},{"$f":"LARGE($G$6:$G$21,1)","v":108.890009},{"$f":"MATCH(H6,$G$6:$G$21,0)","v":4},{"$f":"INDEX($E$6:$E$21,$I6)","v":"Fructe de mare"},{"$f":"INDEX($F$6:$F$21,$I6)","v":{"v":108.89,"d":"108.89 lei"}},{"$f":"ROUND(K6,0)","v":{"v":109,"d":"109 lei"}},{"$f":"UPPER(J6) & \" TOTAL\"","v":"FRUCTE DE MARE TOTAL"}]
[{"$nulls":4},{"$f":"IFERROR(INDEX(Listă[CATEGORIE],MATCH(,COUNTIF($E$5:E6,Listă[CATEGORIE]),)),\"\")","v":"Produse lactate"},{"$f":"SUMIFS(Listă[TOTAL],Listă[CATEGORIE],E7)","v":36.84},{"$f":"F7+ROW()/1000000","v":36.840007},{"$f":"LARGE($G$6:$G$21,2)","v":79.900008},{"$f":"MATCH(H7,$G$6:$G$21,0)","v":3},{"$f":"INDEX($E$6:$E$21,$I7)","v":"Carne"},{"$f":"INDEX($F$6:$F$21,$I7)","v":{"v":79.9,"d":"79.90 lei"}},{"$f":"ROUND(K7,0)","v":{"v":80,"d":"80 lei"}},{"$f":"UPPER(J7) & \" TOTAL\"","v":"CARNE TOTAL"}]
[{"$nulls":4},{"$f":"IFERROR(INDEX(Listă[CATEGORIE],MATCH(,COUNTIF($E$5:E7,Listă[CATEGORIE]),)),\"\")","v":"Carne"},{"$f":"SUMIFS(Listă[TOTAL],Listă[CATEGORIE],E8)","v":79.9},79.900008,{"$f":"LARGE($G$6:$G$21,3)","v":44.875006},{"$f":"MATCH(H8,$G$6:$G$21,0)","v":1},{"$f":"INDEX($E$6:$E$21,$I8)","v":"Legume și fructe"},{"$f":"INDEX($F$6:$F$21,$I8)","v":{"v":44.875,"d":"44.88 lei"}},{"$f":"ROUND(K8,0)","v":{"v":45,"d":"45 lei"}},{"$f":"UPPER(J8) & \" TOTAL\"","v":"LEGUME ȘI FRUCTE TOTAL"}]
[{"$nulls":4},{"$f":"IFERROR(INDEX(Listă[CATEGORIE],MATCH(,COUNTIF($E$5:E8,Listă[CATEGORIE]),)),\"\")","v":"Fructe de mare"},{"$f":"SUMIFS(Listă[TOTAL],Listă[CATEGORIE],E9)","v":108.89},108.890009,{"$f":"LARGE($G$6:$G$21,4)","v":36.840007},{"$f":"MATCH(H9,$G$6:$G$21,0)","v":2},{"$f":"INDEX($E$6:$E$21,$I9)","v":"Produse lactate"},{"$f":"INDEX($F$6:$F$21,$I9)","v":{"v":36.84,"d":"36.84 lei"}},{"$f":"ROUND(K9,0)","v":{"v":37,"d":"37 lei"}},{"$f":"UPPER(J9) & \" TOTAL\"","v":"PRODUSE LACTATE TOTAL"}]
[{"$nulls":4},{"$f":"IFERROR(INDEX(Listă[CATEGORIE],MATCH(,COUNTIF($E$5:E9,Listă[CATEGORIE]),)),\"\")","v":""},{"$f":"SUMIFS(Listă[TOTAL],Listă[CATEGORIE],E10)","v":0},1e-05]
[{"$nulls":4},{"$f":"IFERROR(INDEX(Listă[CATEGORIE],MATCH(,COUNTIF($E$5:E10,Listă[CATEGORIE]),)),\"\")","v":""},{"$f":"SUMIFS(Listă[TOTAL],Listă[CATEGORIE],E11)","v":0},1.1E-5]
[{"$nulls":4},{"$f":"IFERROR(INDEX(Listă[CATEGORIE],MATCH(,COUNTIF($E$5:E11,Listă[CATEGORIE]),)),\"\")","v":""},{"$f":"SUMIFS(Listă[TOTAL],Listă[CATEGORIE],E12)","v":0},1.2E-5]
[{"$nulls":4},{"$f":"IFERROR(INDEX(Listă[CATEGORIE],MATCH(,COUNTIF($E$5:E12,Listă[CATEGORIE]),)),\"\")","v":""},{"$f":"SUMIFS(Listă[TOTAL],Listă[CATEGORIE],E13)","v":0},1.3e-05]
[{"$nulls":4},{"$f":"IFERROR(INDEX(Listă[CATEGORIE],MATCH(,COUNTIF($E$5:E13,Listă[CATEGORIE]),)),\"\")","v":""},{"$f":"SUMIFS(Listă[TOTAL],Listă[CATEGORIE],E14)","v":0},1.4E-5]
[{"$nulls":4},{"$f":"IFERROR(INDEX(Listă[CATEGORIE],MATCH(,COUNTIF($E$5:E14,Listă[CATEGORIE]),)),\"\")","v":""},{"$f":"SUMIFS(Listă[TOTAL],Listă[CATEGORIE],E15)","v":0},1.5E-5]
[{"$nulls":4},{"$f":"IFERROR(INDEX(Listă[CATEGORIE],MATCH(,COUNTIF($E$5:E15,Listă[CATEGORIE]),)),\"\")","v":""},{"$f":"SUMIFS(Listă[TOTAL],Listă[CATEGORIE],E16)","v":0},1.6e-05]
[{"$nulls":4},{"$f":"IFERROR(INDEX(Listă[CATEGORIE],MATCH(,COUNTIF($E$5:E16,Listă[CATEGORIE]),)),\"\")","v":""},{"$f":"SUMIFS(Listă[TOTAL],Listă[CATEGORIE],E17)","v":0},1.7E-5]
[{"$nulls":4},{"$f":"IFERROR(INDEX(Listă[CATEGORIE],MATCH(,COUNTIF($E$5:E17,Listă[CATEGORIE]),)),\"\")","v":""},{"$f":"SUMIFS(Listă[TOTAL],Listă[CATEGORIE],E18)","v":0},1.8E-5]
[{"$nulls":4},{"$f":"IFERROR(INDEX(Listă[CATEGORIE],MATCH(,COUNTIF($E$5:E18,Listă[CATEGORIE]),)),\"\")","v":""},{"$f":"SUMIFS(Listă[TOTAL],Listă[CATEGORIE],E19)","v":0},1.9e-05]
[{"$nulls":4},{"$f":"IFERROR(INDEX(Listă[CATEGORIE],MATCH(,COUNTIF($E$5:E19,Listă[CATEGORIE]),)),\"\")","v":""},{"$f":"SUMIFS(Listă[TOTAL],Listă[CATEGORIE],E20)","v":0},2e-05]
[{"$nulls":4},{"$f":"IFERROR(INDEX(Listă[CATEGORIE],MATCH(,COUNTIF($E$5:E20,Listă[CATEGORIE]),)),\"\")","v":""},{"$f":"SUMIFS(Listă[TOTAL],Listă[CATEGORIE],E21)","v":0},2.1e-05]